[Event "Superbet Blitz Poland 2023"]
[Site "Warsaw"]
[Date "2023.05.25"]
[Round "17"]
[White "Aronian, Levon"]
[Black "Carlsen, Magnus"]
[Result "1/2-1/2"]
[ECO "C50"]
[WhiteElo "2745"]
[BlackElo "2853"]
[Annotator "TA"]
[PlyCount "142"]
[EventDate "2023.05.24"]
[EventType "tourn"]
[EventCountry "POL"]
[SourceTitle "playchess.com"]
[Source "ChessBase"]
[SourceQuality "1"]
[TimeControl "300+2"]

{[%evp 9,142,5,9,2,13,15,14,12,20,0,0,0,6,0,13,0,19,35,36,8,0,-14,-2,-14,0,0,0,0,0,0,9,15,12,0,0,0,0,0,64,64,60,45,54,50,65,71,71,55,56,56,57,29,37,28,42,42,164,173,202,191,165,163,189,192,197,201,191,226,182,118,118,118,111,0,0,0,0,0,0,0,0,0,0,0,0,0,0,0,0,0,0,0,0,0,8,8,8,8,12,0,1122,0,0,0,0,0,0,0,0,0,0,0,0,0,0,0,0,0,0,0,0,0,0,0,0,0,0,0,0,0,0,0,0,0,0]} 1. e4 {[%emt 0:00:01]} e5 {[%emt 0:00:01]} 2. Nf3 {[%emt 0:00:01]} Nc6 {[%emt 0:00:01]} 3. Bc4 {[%emt 0:00:01]} Bc5 {[%emt 0:00:07]} 4. O-O {[%emt 0:00:02]} Nf6 {[%emt 0:00:01]} 5. Nc3 {[%emt 0:00:01]} d6 {[%emt 0:00:06]} 6. Na4 {[%emt 0:00:01] C50: Hungarian Defence and Giuoco Pianissimo.} Bb6 {[%emt 0:00:05]} 7. d3 {[%emt 0:00:01]} Na5 {[%emt 0:00:19] 7...h6 is becoming the main line.} 8. Bb3 {[%emt 0:00:00]} h6 {[%emt 0:00:09]} 9. Nxb6 {[%emt 0:00:07]} axb6 {[%emt 0:00:01]} 10. Ba4+ {[%emt 0:00:01] [#]} Nc6 $146 {[%emt 0:00:22]} ({Predecessor:} 10... Bd7 11. Bxd7+ Nxd7 12. Be3 O-O 13. Nd2 Re8 14. f4 exf4 15. Bxf4 Nc6 16. a3 Nf6 {½-½ Bensiek,N (2363)-Fagerstrom,B (2146) W-ch WS/M/136 email 2008}) 11. c3 {[%emt 0:00:01]} Bg4 {[%emt 0:00:01]} 12. Bb3 {[%emt 0:00:09]} Qd7 {[%emt 0:00:11]} 13. Re1 {[%emt 0:00:16]} b5 {[%emt 0:00:11]} 14. d4 {[%emt 0:00:11]} (14. h3 $5 {[%cal Rh3g4]} Bh5 15. Qe2 $11) 14... Bxf3 {[%emt 0:00:17]} 15. gxf3 {[%emt 0:00:16]} g5 {[%emt 0:00:03]} (15... Qh3 {looks sharper.} 16. Kh1 Nh5 17. Rg1 Ne7) 16. Kh1 {[%emt 0:00:12]} Ne7 {[%emt 0:00:04]} (16... Qh3 {is more complex.} 17. Rg1 Nh5 18. Bc2 Ne7) 17. dxe5 {[%emt 0:00:37]} dxe5 {[%emt 0:00:01]} 18. Qxd7+ {[%emt 0:00:01]} (18. Be3 {keeps more tension.} Qh3 19. Rg1 Nh5 20. f4) 18... Nxd7 {[%emt 0:00:01]} 19. Be3 {[%emt 0:00:02]} Ng6 {[%emt 0:00:03]} 20. Red1 {[%emt 0:00:13][%cal Ob3f7] [#] And now Bxf7+! would win.} Nf6 {[%emt 0:01:01]} 21. c4 {[%emt 0:00:01]} bxc4 {[%emt 0:00:31]} 22. Bxc4 {[%emt 0:00:01]} O-O {[%emt 0:00:02]} 23. a4 {[%emt 0:00:21]} Kg7 {[%emt 0:00:17]} (23... Rfd8 $11) 24. b4 $14 {[%emt 0:00:19] White is more active.} Nh4 {[%emt 0:00:07]} 25. Be2 {[%emt 0:00:01]} c6 {[%emt 0:00:01]} 26. Bb6 {[%emt 0:00:06]} Rfe8 {[%emt 0:00:26]} 27. a5 {[%emt 0:00:21]} Re7 {[%emt 0:00:01]} 28. Ra3 {[%emt 0:00:17]} Nd7 {[%emt 0:00:03] Hoping for ...Nxb6.} 29. Be3 {[%emt 0:00:07]} Nf8 {[%emt 0:00:02]} 30. Bc4 {[%emt 0:00:30]} (30. Bc5 $5 {[%cal Rc5e7]} Ree8 31. Bc4 $14) 30... Ne6 {[%emt 0:00:18]} 31. Bxe6 {[%emt 0:00:08]} fxe6 {[%emt 0:00:27]} 32. Rad3 {[%emt 0:00:02]} Nxf3 {[%emt 0:00:02]} (32... Rf7 $14) 33. Rd7 $18 {[%emt 0:00:00]} Kf6 {[%emt 0:00:09][%cal Of3d4]} 34. Bc5 {[%emt 0:00:15] Against Nd4} Rxd7 {[%emt 0:00:03]} 35. Rxd7 {[%emt 0:00:02][%mdl 4096] Endgame KRB-KRN} b5 {[%emt 0:00:05]} 36. h3 {[%emt 0:00:21]} (36. axb6 {gets mated.} Ra1+) 36... h5 {[%emt 0:00:09]} 37. Kg2 {[%emt 0:00:01]} g4 {[%emt 0:00:01]} 38. hxg4 {[%emt 0:00:01]} hxg4 {[%emt 0:00:01]} 39. Kg3 {[%emt 0:00:09]} (39. Bb6 $18) 39... Ng5 $16 {[%emt 0:00:01]} 40. Be7+ {[%emt 0:00:01]} Kg6 {[%emt 0:00:00]} 41. Bxg5 {[%emt 0:00:06]} (41. Kxg4 $16 Nxe4 42. Rd8) 41... Kxg5 {[%emt 0:00:01] KR-KR} 42. Rg7+ {[%emt 0:00:00]} Kf6 {[%emt 0:00:01]} 43. Rc7 {[%emt 0:00:01]} Rd8 {[%emt 0:00:01]} 44. a6 {[%emt 0:00:19]} Kg5 {[%emt 0:00:07]} 45. Rxc6 {[%emt 0:00:01][%cal Oc6c3] Rc3! would be deadly.} (45. a7 $5) 45... Rd3+ {[%emt 0:00:01]} 46. Kg2 {[%emt 0:00:01][%cal Oc6c5]} Ra3 {[%emt 0:00:01]} 47. Rxe6 {[%emt 0:00:23]} Kf4 {[%emt 0:00:00]} 48. Rb6 {[%emt 0:00:05]} Ra2 {[%emt 0:00:20]} 49. Rxb5 {[%emt 0:00:06]} Rxa6 {[%emt 0:00:01]} 50. Rb8 {[%emt 0:00:10]} Ra2 {[%emt 0:00:11]} 51. b5 {[%emt 0:00:01]} Rb2 {[%emt 0:00:03]} 52. b6 {[%emt 0:00:04] b7 is the strong threat.} Rb3 {[%emt 0:00:01]} 53. b7 {[%emt 0:00:03] Threatening mate with Rf8+.} Kxe4 {[%emt 0:00:01]} 54. Kf1 {[%emt 0:00:00] aiming for Kg2.} Rb2 $2 {[%emt 0:00:04][%mdl 8192] [#]} (54... Rb1+ $11 55. Kg2 Rb3) 55. Ke1 $2 {[%emt 0:00:02]} ({White has to play} 55. Kg1 $1 $18 {Strongly threatening Kh1.} Rb4 56. Kh2) 55... Rb1+ $11 {[%emt 0:00:04] The position is equal.} 56. Kd2 {[%emt 0:00:01]} Rb3 {[%emt 0:00:01]} 57. Kc2 {[%emt 0:00:02]} Rb6 {[%emt 0:00:02]} 58. Kc3 {[%emt 0:00:02]} Rb1 {[%emt 0:00:01]} 59. Kc4 {[%emt 0:00:02]} Rb2 {[%emt 0:00:01]} 60. Kc5 {[%emt 0:00:02]} Rb1 {[%emt 0:00:03]} 61. Kc6 {[%emt 0:00:05] White threatens Rf8 and mate.} Rc1+ {[%emt 0:00:02]} 62. Kd6 {[%emt 0:00:01] Intending Rf8 and mate.} Rb1 {[%emt 0:00:02]} 63. Ke7 {[%emt 0:00:07]} (63. Kc7 $5 Rc1+ $8 64. Kd8 $11) 63... Kf3 {[%emt 0:00:03]} 64. Rf8+ {[%emt 0:00:01]} Ke2 {[%emt 0:00:02]} 65. b8=Q {[%emt 0:00:02]} Rxb8 {[%emt 0:00:01]} 66. Rxb8 {[%emt 0:00:01] White wants to mate with Rb2+.} Kxf2 {[%emt 0:00:01] KR-KPP} 67. Rf8+ {[%emt 0:00:04]} Ke3 {[%emt 0:00:01]} 68. Ke6 {[%emt 0:00:02]} g3 {[%emt 0:00:02]} 69. Kxe5 {[%emt 0:00:02]} g2 {[%emt 0:00:00]} 70. Rg8 {[%emt 0:00:01]} Kf2 {[%emt 0:00:01]} 71. Rxg2+ {[%emt 0:00:01]} Kxg2 {[%emt 0:00:01] Weighted Error Value: White=0.16 (very precise) /Black=0.09 (flawless)} 1/2-1/2

[Event "Superbet Blitz Poland 2023"]
[Site "Warsaw"]
[Date "2023.05.25"]
[Round "17"]
[White "Vachier-Lagrave, Maxime"]
[Black "Deac, Bogdan-Daniel"]
[Result "1/2-1/2"]
[ECO "B12"]
[WhiteElo "2742"]
[BlackElo "2700"]
[Annotator "TA"]
[PlyCount "143"]
[EventDate "2023.05.24"]
[EventType "tourn"]
[EventCountry "POL"]
[SourceTitle "playchess.com"]
[Source "ChessBase"]
[SourceQuality "1"]
[TimeControl "300+2"]

{[%evp 11,143,11,9,-9,16,23,12,13,13,-5,3,-23,0,0,0,-8,0,0,0,-8,-8,-36,-31,-58,-57,-59,-62,-66,-66,-66,-66,-66,-55,-60,-55,-91,-75,-71,-48,-83,-72,-79,-91,-91,-68,-64,-39,-50,-50,-83,-72,-68,-50,-64,-64,-66,-48,-49,-49,-53,-56,-57,-7,-43,-21,-21,-20,-51,-21,-21,-21,-21,0,0,0,-21,-21,-21,0,0,0,0,0,0,0,0,0,0,0,0,0,0,0,0,0,0,0,0,12,14,133,0,0,0,0,0,0,0,70,70,400,0,0,0,0,0,0,0,0,0,0,0,0,0,0,0,0,0,0,0,0,0,0,0]} 1. e4 {[%emt 0:00:01]} c6 {[%emt 0:00:01]} 2. d4 {[%emt 0:00:01]} d5 {[%emt 0:00:03]} 3. e5 {[%emt 0:00:01]} Bf5 {[%emt 0:00:01]} 4. h4 {[%emt 0:00:02]} h5 {[%emt 0:00:02]} 5. Bd3 {[%emt 0:00:01]} Bxd3 {[%emt 0:00:01]} 6. Qxd3 {[%emt 0:00:01]} e6 {[%emt 0:00:04]} 7. Bg5 {[%emt 0:00:07] B12: Caro-Kann: Advance Variation.} Be7 {[%emt 0:00:01]} (7... Qb6 $5 {[%cal Rb6b2]} 8. Nd2 c5 $11) 8. Nf3 {[%emt 0:00:11]} Nh6 {[%emt 0:00:01]} 9. Nbd2 {[%emt 0:00:06][%cal Bb1d2,Bd2c4,Bc4e3][%mdl 32]} Nf5 {[%emt 0:00:05]} 10. Bxe7 $5 {[%emt 0:00:06][%mdl 4] An interesting side line.} Qxe7 {[%emt 0:00:02] [#]} 11. c4 $146 {[%emt 0:00:12]} ({Predecessor:} 11. g3 c5 12. c3 Nc6 13. O-O cxd4 14. cxd4 O-O 15. Rfc1 Rac8 16. Nb3 Qb4 17. Rc3 {½-½ Visakh,N (2516)-Sorokin,A (2521) Titled Tuesday intern op 27th Oct blitz 2020 (7)}) 11... dxc4 {[%emt 0:00:18]} 12. Nxc4 {[%emt 0:00:01]} Na6 {[%emt 0:00:17][%cal Bb8a6,Ba6c7,Bc7e6][%mdl 32]} 13. Ne3 {[%emt 0:00:10]} g6 {[%emt 0:00:07]} 14. a3 {[%emt 0:00:06]} Rd8 {[%emt 0:00:04]} 15. Rd1 {[%emt 0:00:21]} Nc7 {[%emt 0:00:09]} 16. Nxf5 {[%emt 0:00:32]} exf5 {[%emt 0:00:24]} 17. O-O {[%emt 0:00:04]} Ne6 {[%emt 0:00:10]} 18. Qe3 {[%emt 0:00:03][%cal Od4d5]} Rd5 {[%emt 0:00:05]} 19. Rd2 {[%emt 0:00:10]} O-O {[%emt 0:00:16]} 20. Rfd1 {[%emt 0:00:01]} Rfd8 {[%emt 0:00:04]} 21. g3 {[%emt 0:00:02]} Qd7 {[%emt 0:01:05]} 22. Kh2 {[%emt 0:00:08]} a5 {[%emt 0:00:04]} (22... Kg7 {is more complex.} 23. b4 a5 24. Ng5 Nxg5 25. Qxg5 axb4 26. axb4 Ra8) 23. Qb3 {[%emt 0:00:13]} Qe7 {[%emt 0:00:48]} 24. Qe3 {[%emt 0:00:05]} R8d7 {[%emt 0:00:40]} 25. Qc3 {[%emt 0:00:16]} Qd8 {[%emt 0:00:09]} 26. b4 {[%emt 0:00:01]} axb4 {[%emt 0:00:09]} 27. axb4 {[%emt 0:00:01]} f4 {[%emt 0:00:04]} 28. Kg2 {[%emt 0:00:44]} Qb6 {[%emt 0:00:22]} 29. Ra1 {[%emt 0:00:11]} Rd8 {[%emt 0:00:11]} ({Don't do} 29... Nxd4 30. Ra8+ Kg7 31. e6 fxe6 32. Ra5 $14) 30. Ra5 {[%emt 0:00:07]} fxg3 {[%emt 0:00:02]} (30... Nxd4 $2 31. Rxd5 (31. gxf4 $2 {perishes.} Nxf3 {[%mdl 64] Discovered Attack} 32. Rdxd5 Nxh4+ 33. Kh3 Rxd5 $19) 31... Rxd5 32. Rxd4 $18) 31. fxg3 {[%emt 0:00:02]} Rb5 {[%emt 0:00:03]} (31... Nxd4 $2 32. Rxd5 Rxd5 33. Rxd4 $18) 32. Rxb5 {[%emt 0:00:06]} Qxb5 {[%emt 0:00:01]} 33. Qb3 {[%emt 0:00:08]} Qd5 {[%emt 0:00:07]} 34. Qxd5 {[%emt 0:00:03]} Rxd5 $15 {[%emt 0:00:01][%mdl 4096] Endgame KRN-KRN} 35. Kf2 {[%emt 0:00:01]} Rb5 {[%emt 0:00:03]} 36. Rb2 {[%emt 0:00:02]} Nc7 {[%emt 0:00:02]} (36... Kf8 $15) 37. Ne1 {[%emt 0:00:02]} f6 {[%emt 0:00:05]} 38. Nd3 {[%emt 0:00:10]} Kf7 {[%emt 0:00:03]} 39. Kf3 {[%emt 0:00:15]} Nd5 {[%emt 0:00:02]} 40. g4 {[%emt 0:00:09]} hxg4+ {[%emt 0:00:01]} 41. Kxg4 {[%emt 0:00:01]} Kg7 {[%emt 0:00:03]} 42. Kf3 {[%emt 0:00:13]} Kf7 {[%emt 0:00:01]} 43. Kg4 {[%emt 0:00:10]} Ne3+ {[%emt 0:00:02]} 44. Kf4 {[%emt 0:00:11]} Nd5+ {[%emt 0:00:02]} (44... Nf5 $5 {[%cal Rb5d5]} 45. h5 Nxd4 46. hxg6+ Kxg6 47. Rg2+ Kf7 $15) 45. Kf3 {[%emt 0:00:09]} Ke7 {[%emt 0:00:02]} 46. Rb1 {[%emt 0:00:11]} Kf7 {[%emt 0:00:02]} 47. Rb2 {[%emt 0:00:01]} fxe5 {[%emt 0:00:02]} 48. dxe5 {[%emt 0:00:01]} Ke6 {[%emt 0:00:02]} 49. Re2 {[%emt 0:00:10]} Kf7 {[%emt 0:00:02]} ({Don't play} 49... Nxb4 50. Nf4+ Kf7 51. e6+ Ke8 52. Nxg6 $16) 50. Re4 {[%emt 0:00:08]} Rb6 {[%emt 0:00:01]} 51. Kg4 {[%emt 0:00:03]} Ra6 {[%emt 0:00:03]} 52. Nc5 {[%emt 0:00:02][%csl LRa6,LRb7]} Ra1 {[%emt 0:00:02]} 53. Nxb7 {[%emt 0:00:02] Hoping for Nd8+.} Rg1+ {[%emt 0:00:02]} 54. Kf3 {[%emt 0:00:01] Nd8+ would be deadly.} Ke7 {[%emt 0:00:01] Dodges Nd8} 55. Na5 {[%emt 0:00:02]} Rf1+ {[%emt 0:00:03]} (55... Rc1 $11 {keeps the balance.}) 56. Kg3 {[%emt 0:00:04]} (56. Ke2 $1 $16 {[%cal Re2f1]} Rf8 57. Nxc6+ Kd7 58. Rc4) 56... Rc1 $11 {[%emt 0:00:01]} 57. e6 {[%emt 0:00:08]} Rc3+ {[%emt 0:00:03]} 58. Kf2 {[%emt 0:00:01]} Nf6 {[%emt 0:00:03]} 59. Re2 {[%emt 0:00:05]} Ng4+ {[%emt 0:00:01]} (59... Nd5 $11) 60. Ke1 $14 {[%emt 0:00:01]} Ne3 $2 {[%emt 0:00:04][%mdl 8192] [#]} (60... Nf6 $14) 61. Nxc6+ $2 {[%emt 0:00:04]} Rxc6 $11 {[%emt 0:00:01] The position is equal.} 62. Rxe3 $18 {[%emt 0:00:00] Kd2 is the strong threat. KR-KR} Rc4 $1 {[%emt 0:00:01]} 63. Rb3 {[%emt 0:00:04]} Rxh4 {[%emt 0:00:03]} 64. b5 {[%emt 0:00:01][%cal Bb4b5,Bb5b6][%mdl 32]} Kxe6 {[%emt 0:00:01]} 65. b6 {[%emt 0:00:01] White threatens b7 and mate.} Rh8 {[%emt 0:00:01]} 66. Kf2 {[%emt 0:00:01]} (66. b7 $5 Rb8 $8 67. Kf2 $11) 66... Kd6 {[%emt 0:00:01]} 67. b7 {[%emt 0:00:01]} Rb8 {[%emt 0:00:00]} 68. Kg3 {[%emt 0:00:01]} Kc6 {[%emt 0:00:01]} 69. Kg4 {[%emt 0:00:00]} Rxb7 70. Rxb7 {[%emt 0:00:01]} Kxb7 {[%emt 0:00:01]} 71. Kg5 {[%emt 0:00:00]} Kc6 {[%emt 0:00:01]} 72. Kxg6 {Weighted Error Value: White=0.10 (very precise) /Black=0.23 (precise)} 1/2-1/2

[Event "Superbet Blitz Poland 2023"]
[Site "Warsaw"]
[Date "2023.05.25"]
[Round "17"]
[White "Duda, Jan-Krzysztof"]
[Black "Wojtaszek, Radoslaw"]
[Result "1-0"]
[ECO "B23"]
[WhiteElo "2724"]
[BlackElo "2670"]
[Annotator "TA"]
[PlyCount "115"]
[EventDate "2023.05.24"]
[EventType "tourn"]
[EventCountry "POL"]
[SourceTitle "playchess.com"]
[Source "ChessBase"]
[SourceQuality "1"]
[TimeControl "300+2"]

{[%evp 9,115,20,18,15,31,25,43,50,95,79,112,98,112,96,90,92,93,93,110,93,97,96,128,35,102,105,96,109,91,82,145,96,137,58,56,55,59,50,58,48,48,47,53,58,71,70,80,81,79,31,23,21,25,25,45,9,20,0,8,0,0,-31,-31,-31,-31,-30,-23,-21,0,0,0,0,0,0,0,0,0,0,0,-113,-8,-8,-8,-8,-8,-8,0,0,0,0,0,0,101,8,8,8,8,8,29978,29979,29982,29983,29983,29983,29983,29984,29983,29984]} 1. e4 {[%emt 0:00:01]} c5 {[%emt 0:00:01]} 2. Nc3 {[%emt 0:00:01]} d6 {[%emt 0:00:03]} 3. f3 {[%emt 0:00:02]} Nf6 {[%emt 0:00:04]} 4. d4 {[%emt 0:00:01]} cxd4 {[%emt 0:00:02]} 5. Qxd4 {[%emt 0:00:02]} Nc6 {[%emt 0:00:09]} 6. Qf2 {[%emt 0:00:02] [#] B23: Closed Sicilian: Lines without g3.} e6 $146 {[%emt 0:00:20]} ({Predecessor:} 6... g6 7. Be3 Bg7 8. O-O-O O-O 9. h4 Qa5 10. h5 Nxh5 11. Rd5 Qd8 12. Rdxh5 gxh5 {1-0 Carlsen,M (2862)-Firouzja,A (2749) Magnus-Alireza Bullet blitz 2021 (5)}) 7. Be3 {[%emt 0:00:08]} d5 {[%emt 0:00:28] aiming for ...d4.} 8. O-O-O {[%emt 0:00:13] White is slightly better.} Bb4 {[%emt 0:00:01]} 9. Nge2 {[%emt 0:00:04]} Qa5 {[%emt 0:00:17]} 10. exd5 {[%emt 0:00:11]} Nxd5 {[%emt 0:00:28]} 11. Nxd5 {[%emt 0:00:02]} exd5 {[%emt 0:00:03]} 12. Kb1 {[%emt 0:00:02]} Be6 {[%emt 0:00:14][%cal Od5d4] Hoping for ...d4!} 13. Nd4 {[%emt 0:00:07]} O-O {[%emt 0:00:12]} 14. Bd3 {[%emt 0:00:06]} Be7 {[%emt 0:00:08] Inhibits Qh4.} 15. Rhe1 {[%emt 0:00:29] White is more active.} Bf6 {[%emt 0:00:07]} 16. g4 {[%emt 0:00:32]} ({Much less strong is} 16. c3 Rfe8) (16. Nxe6 $16 fxe6 17. Bd2) 16... Nb4 {[%emt 0:01:06]} ({Black should play} 16... Qb6 $14 17. c3 Bxd4 18. Bxd4 (18. cxd4 Nb4 $11) 18... Nxd4 19. Qxd4 Qxd4 20. cxd4 g6) 17. a3 $16 {[%emt 0:00:05]} Nxd3 {[%emt 0:00:02]} 18. Rxd3 {[%emt 0:00:02]} Rfe8 {[%emt 0:00:01]} 19. Nb3 {[%emt 0:00:21]} Qb5 {[%emt 0:00:07]} (19... Qd8 $142) 20. Bd4 {[%emt 0:00:05]} (20. Bxa7 $142 Rac8 21. Bd4) 20... Be7 {[%emt 0:00:14]} 21. Rde3 {[%emt 0:00:42]} (21. Bxa7 $16 Rac8 22. Be3) 21... Bf8 {[%emt 0:00:04]} 22. Qd2 {[%emt 0:00:19]} b6 {[%emt 0:00:08]} 23. h4 {[%emt 0:00:06]} Bd7 {[%emt 0:00:07]} 24. Be5 {[%emt 0:00:07]} f6 {[%emt 0:00:14]} 25. Bc3 {[%emt 0:00:58]} Rxe3 {[%emt 0:00:01]} 26. Rxe3 {[%emt 0:00:01][%cal Be1e3,Be3d3,Bd3d5][%mdl 32]} Re8 {[%emt 0:00:01]} 27. Rd3 $1 {[%emt 0:00:02]} a5 {[%emt 0:00:21]} 28. Rxd5 {[%emt 0:00:23]} Qf1+ {[%emt 0:00:03]} 29. Qd1 {[%emt 0:00:02]} ({Better is} 29. Nc1 $16 Bc6 30. Rf5) 29... Qxd1+ $14 {[%emt 0:00:11]} 30. Rxd1 {[%emt 0:00:01]} Bc6 {[%emt 0:00:03]} 31. Nd4 {[%emt 0:00:04]} Bb7 {[%emt 0:00:01]} 32. h5 {[%emt 0:00:05]} Bc5 {[%emt 0:00:01]} 33. Rf1 {[%emt 0:00:15]} Re3 {[%emt 0:00:07]} 34. h6 {[%emt 0:00:03]} gxh6 {[%emt 0:00:07]} 35. Nf5 {[%emt 0:00:07]} Rxf3 {[%emt 0:00:01]} 36. Nxh6+ {[%emt 0:00:07]} Kf8 {[%emt 0:00:17]} 37. Rxf3 {[%emt 0:00:07]} Bxf3 {[%emt 0:00:00]} 38. Bxf6 $15 {[%emt 0:00:01][%mdl 4096] Endgame KBB-KBN} Be4 {[%emt 0:00:08]} 39. a4 {[%emt 0:00:03]} Ke8 {[%emt 0:00:06]} 40. g5 {[%emt 0:00:06]} Kd7 {[%emt 0:00:02]} 41. b3 {[%emt 0:00:02]} Ke6 {[%emt 0:00:01]} 42. Kb2 {[%emt 0:00:01]} Bf3 {[%emt 0:00:01]} 43. c3 {[%emt 0:00:04]} Be3 {[%emt 0:00:05]} 44. b4 {[%emt 0:00:03]} (44. Kc2 $11 {remains equal.}) 44... axb4 {[%emt 0:00:02]} ({Black should try} 44... Bd1 $17 45. Bd8 Bf4 46. bxa5 bxa5) 45. cxb4 $11 {[%emt 0:00:01]} Bd1 {[%emt 0:00:01] This pair of bishops is nice.} 46. a5 {[%emt 0:00:02]} bxa5 {[%emt 0:00:01]} 47. bxa5 {[%emt 0:00:01]} Be2 {[%emt 0:00:03]} 48. Kc3 {[%emt 0:00:01]} Ba6 {[%emt 0:00:04]} 49. Ng4 {[%emt 0:00:02]} Bc5 {[%emt 0:00:03]} 50. Ne5 {[%emt 0:00:04]} h6 {[%emt 0:00:05] [#]} 51. gxh6 $1 {[%emt 0:00:01]} Kxf6 {[%emt 0:00:04]} 52. Nd7+ {[%emt 0:00:02]} Kg6 {[%emt 0:00:01] And now ...Ba7 would win.} 53. Nxc5 {[%emt 0:00:02]} Bc8 {[%emt 0:00:03][%mdl 8192] Black cannot hold the game after this.} (53... Bb5 $11) 54. Kd4 {[%emt 0:00:02] White mates.} Kxh6 {[%emt 0:00:01]} 55. Ke5 {[%emt 0:00:01]} Kg7 {[%emt 0:00:01]} 56. Kd6 {[%emt 0:00:01]} Kf7 {[%emt 0:00:02]} 57. Kc7 {[%emt 0:00:01]} Bh3 {[%emt 0:00:04]} 58. a6 {[%emt 0:00:01] Weighted Error Value: White=0.18 (very precise) /Black=0.22 (precise)} 1-0